Workbook

Sheet CÁLCULO IMPOSTOS VENDA
B3: CÁLCULOS IMPOSTOS
B4: PRECO LÍQUIDO | C4: =178.51*(1-0.375) -> R$ 111.57 | E4: NOTA FISCAL
B5: VALOR VTM | C5: 0 | E5: VALOR ITEM | F5: =C4+C13+C15+C21+IF(C6="NÃO CONTRIBUINTE",C33+C34,0) -> R$ 139.70
B6: DESTINO CLIENTE | C6: REVENDA
B7: UF EMPRESA | C7: SP - São Paulo | E7: VALOR ICMS | F7: =IF(C35="SIM",0,C21) -> R$ 16.76
B8: UF CLIENTE | C8: SP - São Paulo | E8: VALOR PIS | F8: =C13 -> R$ 2.03
B9: OPERAÇÃO | C9: =IF(C7=C8,"INTERNA","INTERESTADUAL") -> INTERNA
B10: BASE PIS COFINS (BX80,BX70) | C10: =ROUND(C4/(1-(C11*IF(C12>0,C12,1))-(C14*IF(C12>0,C12,1))-IF(AND(C9="INTERESTADUAL",C6="NÃO CONTRIBUINTE"),IF(C19>C31,0,(C31-C19)/(1-C19*(1+C23))*(1+C23)),0))*IF(C12>0,C12,1),2) -> R$ 122.94 | E10: VALOR COFINS | F10: =C15 -> R$ 9.34
B11: ALIQUOTA PIS | C11: 1.65% | E11: VALOR IPI | F11: =C24 -> 0
B12: % REDUCAO BASE PIS COFINS | C12: 0.00% | E12: VALOR ST | F12: =IF(C6<>"NÃO CONTRIBUINTE",IF(C29="sim",C33,0),0) -> R$ 50.43
B13: VALOR PIS (BX82) | C13: =ROUND(C10*C11,2) -> R$ 2.03 | E13: VALOR FCP ST | F13: =IF(C6<>"NÃO CONTRIBUINTE",C34,0) -> 0
B14: ALIQUOTA COFINS | C14: 7.60% | E14: VALOR DIFAL | F14: =IF(C6="NÃO CONTRIBUINTE",C33,0) -> 0
B15: VALOR COFINS (BX72) | C15: =ROUND(C14*C10,2) -> R$ 9.34 | E15: VALOR FCP DIFAL | F15: =IF(C6="NÃO CONTRIBUINTE",C34,0) -> 0
B16: ALIQUOTA ICMS (BX16) | C16: 12% | E16: VALOR DESCONTO ZFM/ALC | F16: =IF(C35="SIM",C21,0) -> 0
B17: % REDUCAO BASE ICMS | C17: 0.00% | E17: TOTAL NOTA | F17: =F5+F11+F12+F13-F16 -> R$ 190.13
B18: % DIFERIMENTO PARCIAL | C18: 0.00%
B19: CARGA TRIB ICMS PRÓPRIO | C19: =C16*IF(C17+C18>0,C17+C18,1) -> 12.00% | E19: LIVROS FISCAIS
B20: BASE ICMS (BX10) | C20: =IF(AND(C9="INTERESTADUAL",C6="NÃO CONTRIBUINTE"),(C4+C13+C15)/(1-(MAX(C19,C31)*(1+C23)))*(1+C23)*(C19/C16),IF(OR(C6="CONSUMO",C6="IMOBILIZADO",C6="NÃO CONTRIBUINTE"),MAX(IFERROR((C4+C13+C15)/(1-C19*(1+C23))*(1+C23)*(C19/C16),0),IFERROR(((C4+C13+C15+(C5*C23))/(1-C19))*(C19/C16),0)),IFERROR((C4+C13+C15)/(1-C19)*(C19/C16),0))) -> R$ 139.70 | E20: Tributo | F20: Valor Operação | G20: Base de cálculo | H20: Isentas/NT | I20: Outras
B21: VALOR ICMS (BX13) | C21: =ROUND(C20*C16,2) -> R$ 16.76 | E21: ICMS | F21: =F17 -> R$ 190.13 | G21: =IF(F16>0,0,C20-I21) -> R$ 139.70 | H21: =IF(F16>0,F21,ROUND(IF(C17>0,C20/C17*(1-C17),0),2)) -> 0 | I21: =IF(C18>0,C20*(1-C18),0) -> 0
B22: BASE IPI (BX20) | C22: =MAX(C4+C13+C15+C21+IFERROR(IF(AND(C9="INTERESTADUAL",C6="NÃO CONTRIBUINTE"),C33+C34,0),0),C5) -> R$ 139.70
B23: ALIQUOTA IPI (IPVA) | C23: 0.00%
B24: VALOR IPI (BX23) | C24: =ROUND(C23*C22,2) -> 0 | E24: PASSO A PASSO DIFAL NÃO CONTRIBUINTE e ST com e sem MVA
B25: MVA ST (ISTS) | C25: =(2.49/0.82*0.88)-1 -> 167.22% | E25: Não contribuinte (DIFAL NC) | F25: BASE ICMS | G25: =IFERROR((C4+C13+C15)/(1-(MAX(C19,C31)*(1+C23)))*(1+C23)*(C19/C16),"") -> R$ 149.93
B26: ="ALIQUOTA INTERNA UF DESTINO "&IF(C6="NÃO CONTRIBUINTE","(BX95)","(BX44)") -> ALIQUOTA INTERNA UF DESTINO (BX44) | C26: 18% | E26: Não contribuinte (DIFAL NC) | F26: BASE DIFAL | G26: =IFERROR((C4+C13+C15)/(1-(MAX(C19,C31)*(1+C23)))*(1+C23)*(C31/(C26+C28)),0) -> R$ 149.93
B27: ="REDUCAO BASE UF DESTINO"&IF(C6="NÃO CONTRIBUINTE"," (ISIB)"," (ISTB)") -> REDUCAO BASE UF DESTINO (ISTB) | C27: 0.00% | E27: Consumo (ST sem MVA) | F27: BASE ICMS | G27: =IFERROR((C4+C13+C15)/(1-C19*(1+C23))*(1+C23)*(C19/C16),"") -> R$ 139.70
B28: ALIQUOTA FCP UF DESTINO (BX4C) | C28: 0% | D28: =IF(AND(LEFT(C8,2)="MG",C9="INTERESTADUAL",OR(C6="CONSUMO",C6="IMOBILIZADO"),C27>0),"Cálculo Exceção Minas Gerais","") ->  | E28: Consumo (ST sem MVA) | F28: BASE DIFAL | G28: =MAX(IFERROR((C4+C13+C15+C24)/(1-IF(LEFT(C8,2)="MG",C26,C31))*(1-C27),""),IFERROR((C4+C13+C15+C24)/(1-C19)*(1-C27),"")) -> R$ 149.93
B29: PROTOCOLO ST? (ZSTP) | C29: SIM | D29: =IF(AND(LEFT(C8,2)="PE",C9="INTERESTADUAL",OR(C6="CONSUMO",C6="IMOBILIZADO")),"Cálculo Exceção Pernambuco","") ->  | E29: revenda (ST com MVA) | F29: BASE ICMS | G29: =IFERROR((C4+C13+C15)/(1-C19)*(C19/C16),"") -> R$ 139.70
B30: ITEM É PNEUS/CÂMARAS? | C30: NÃO | D30: =IF(AND(C33>0,C29="NÃO",C6<>"NÃO CONTRIBUINTE"),"Valor antecipado em nome do cliente","") ->  | E30: revenda (ST com MVA) | F30: BASE ST | G30: =IFERROR(IF(C26=0,0,IF(C30="NÃO",ROUND((C4+C13+C15+C21+C24)*(1+C25)*IF(C27=0,1,1-C27),2),ROUND((C20+C24)*(1+C25)*IF(C27=0,1,1-C27),2))),"") -> 373.3
B31: CARGA TRIB ICMS UF DESTINO | C31: =IF(AND(C6="NÃO CONTRIBUINTE",C9="INTERESTADUAL"),(C26+C28)*IF(C27>0,C27,1),(C26+C28)*(1-C27)) -> 18.00%
B32: =IF(AND(C9="INTERESTADUAL",C6="NÃO CONTRIBUINTE"),"BASE DIFAL NÃO CONTRIBUINTE (BX91)","BASE ST (BX40)"&IF(C28>0," BASE FCP ST (BX4B)","")) -> BASE ST (BX40) | C32: =ROUND(IF(AND(C9="INTERESTADUAL",C6="NÃO CONTRIBUINTE"),IFERROR((C4+C13+C15)/(1-(MAX(C19,C31)*(1+C23)))*(1+C23)*(C31/(C26+C28)),0),IF(AND(C9="INTERESTADUAL",C26>0,OR(C6="CONSUMO",C6="IMOBILIZADO")),MAX(IFERROR((C4+C13+C15+C24)/(1-IF(LEFT(C8,2)="MG",C26,C31))*(1-C27),""),IFERROR((C4+C13+C15+C24)/(1-C19)*(1-C27),"")),IFERROR(IF(C26=0,0,IF(C30="NÃO",ROUND((C4+C13+C15+C21+C24)*(1+C25)*IF(C27=0,1,1-C27),2),ROUND((C20+C24)*(1+C25)*IF(C27=0,1,1-C27),2))),""))),2) -> R$ 373.30
B33: =IF(AND(C9="INTERESTADUAL",C6="NÃO CONTRIBUINTE"),"VALOR DIFAL NÃO CONTRIBUINTE (BX95)","VALOR ST (BX41)") -> VALOR ST (BX41) | C33: =ROUND(IF(IF(AND(LEFT(C8,2)="PE",C9="INTERESTADUAL",OR(C6="CONSUMO",C6="IMOBILIZADO")),C32*(C26+C28-C16),IF(C32=0,0,C32*C26-C21))>0,IF(AND(LEFT(C8,2)="PE",C9="INTERESTADUAL",OR(C6="CONSUMO",C6="IMOBILIZADO")),C32*(C26+C28-C16),IF(C32=0,0,C32*C26-C21)),0),2) -> R$ 50.43
B34: =IF(AND(C9="INTERESTADUAL",C6="NÃO CONTRIBUINTE"),"VALOR FCP DIFAL NÃO CONTRIBUINTE (BX96)","VALOR FCP ST (BX4A)") -> VALOR FCP ST (BX4A) | C34: =IF(ROUND(C32*C28,2)>0,ROUND(C32*C28,2),0) -> 0
B35: DESCONTO ZFM/ALC? (BXZF) | C35: NÃO
B36: TOTAL IMPOSTOS | C36: =C13+C15+C21+C24+C33+C34-IF(C35="SIM",C21,0) -> R$ 78.56
B37: Preço bruto | C37: =C4+C36-IF(AND(C29="NÃO",C6<>"NÃO CONTRIBUINTE"),C33+C34,0) -> R$ 190.13

Sheet Cálculo Acréscimo Compras CDs
L3: Acrescentar valor custo impostos compra CD
L6: Preço lista líquida | N6: R$ 178.51
L8: Desconto médio (compra CD) | N8: 37.50%
L10: Regime Monofásico? | M10: DIP029 | N10: NÃO
L12: Alíquota PIS (Compra CD) | N12: 1.65%
L14: Alíquota COFINS (Compra CD) | N14: 7.60%
L16: % Base PIS COFINS (Compra CD) | N16: 100.00%
L18: Carga ICMS (Compra CD) | M18: REGRA | N18: 12.00%
L20: MVA ST interna CD | M20: CDP048 | N20: 149.00%
L22: Alíquota Interna ST CD | M22: CDP048 | N22: 18.00%
L24: %Redução Base ST interna CD | M24: CDP048 | N24: 0.00%
L26: % IPI | M26: CDP048 | N26: 0.00%
L28: % Acréscimo PIS COFINS Monofásico | M28: CALCULO | N28: =IF(N10="SIM",(N12+N14)*N16/(1-(N12+N14)*N16)*(1-N8),0) -> 0.00%
L29: Valor Ac PIS COFINS Monofásico | M29: CALCULO | N29: =N28*N6 -> 0
L30: %Acréscimo IPI | M30: CALCULO | N30: =N26/(1-(N12+N14)*N16)/(1-N18)*(1-N8) -> 0.00%
L31: Valor acréscimo IPI | M31: CALCULO | N31: =N30*N6 -> 0
L32: %Acréscimo ICMS Interno | M32: CALCULO | N32: =N22*IF(N24>0,N24,1)/(1-(N12+N14)*N16)/(1-MAX(N22*IF(N24>0,N24,1),N18))*(1-N8) -> 15.12%
L33: Valor Acréscimo ICMS Interno | M33: CALCULO | N33: =N32*N6 -> R$ 26.99
L34: %Acréscimo ST interno | M34: CALCULO | N34: =(1+N20)*N32*(1+N26)-N32 -> 22.53%
L35: Valor Acréscimo ST interno | M35: CALCULO | N35: =N34*N6 -> R$ 40.21
L37: % Acréscimo Interno | M37: CALCULO | N37: =N30+N32+N34+N28 -> 37.6436%
L38: % Acréscimo Interestadual | M38: CALCULO | N38: =N30+N28 -> 0.0000%
L40: VALOR ACRÉSCIMO SAIDA INTERNA | N40: =N6*N37 -> R$ 67.20
L42: VALOR ACRÉSCIMO SAIDA INTERESTADUAL | N42: =N6*N38 -> 0

Sheet Relatório Acréscimo CDs
A1: CD | B1: Período | C1: UF CD | D1: Produto | E1: NCM | F1: Fábrcia Origem | G1: UF Fábrica Origem | H1: Preço Lista Líquida | I1: Desconto médio compra CDs | J1: REGIME MONOFASICO PIS COFINS (DIP029) | K1: Percentual PIS COFINS (DIP029) | L1: Percentual PIS COFINS Padrão | M1: FATOR Acréscimo PIS/COFINS | N1: VALOR Acréscimo PIS/COFINS | O1: Alíquota IPI (CDP048 CD SUL) | P1: TRIBUTACAO (CDP048 CD SUL) | Q1: Importado ou CI > 40 | R1: Cadastro DIP148 | S1: Carga ICMS Compra | T1: Fator Acréscimo IPI | U1: Valor Acréscimo IPI | V1: Percentual ST (CDP048) | W1: Percentual MVA (CDP048) | X1: Percentual redução ST (CDP048) | Y1: Fator Acréscimo ICMS | Z1: Fator Acréscimo ST | AA1: Valor Acréscimo ICMS | AB1: Valor Acréscimo ST | AC1: TOTAL Acréscimo Saídas Internas | AD1: TOTAL Acréscimo Saídas Interestaduais
A2: SUDESTE | B2: 2024-04-01 | C2: SP | D2: 99999999 | E2: 9404.90.00 | F2: CUTELARIA | G2: RS | H2: R$ 1,000.00 | I2: 37.50% | J2: SIM | K2: 12.50% | L2: 9.25% | M2: =IF(J2="SIM",K2/(1-K2),L2/(1-L2))*(1-I2) -> 8.93% | N2: =IF(J2="SIM",M2*H2,0) -> R$ 89.29 | O2: 7.80% | P2: D | Q2: Não | R2: Não | S2: 12% | T2: =O2/(1-IF(J2="SIM",K2,L2))/(1-S2)*(1-I2) -> 6.33% | U2: =T2*H2 -> R$ 63.31 | V2: 18% | W2: 43% | X2: 0% | Y2: =(V2*IF(X2>0,X2,1))/(1-IF(J2="SIM",K2,L2))/(1-(V2*IF(X2>0,X2,1)))*(1-I2) -> 15.68% | Z2: =(1+W2)*Y2*(1+O2)-Y2 -> 8.49% | AA2: =Y2*H2 -> R$ 156.79 | AB2: =Z2*H2 -> R$ 84.91 | AC2: =N2+U2+AA2+AB2 -> R$ 394.30 | AD2: =N2+U2 -> R$ 152.60
A8: Quando Recalcular?
A9: - Mudança Lista Líquida
A10: - Mudança alíquota interna ICMS do CD caso ocorra mudança de legislação
A11: - Mudança alíquota interestadual caso ocorra mudança de legislação
A12: - Mudança Alíquota de IPI caso ocorra mudança de legislação
A13: - Mudança MVA ou item incluído/excluído da ST caso ocorra mudança de legislação
A14: - Mudança no DIP148 (apenas CD SUL) caso ocorra fim de vigência ou Início de data de aplicação
A15: - Mudança de faixa de FCI no início de cada mês
A16: - Erros de cadastros que sejam corrigidos
